fUSD/lending_fUSD_20240217
["ID","MTS","AMOUNT","RATE_DAILY","PERIOD"]
[314281584,1708147866083,-500.0,0.00051232,60]
[314281585,1708147866093,-500.0,0.00051232,60]
[314281586,1708147866102,-500.0,0.00051232,60]
[314281587,1708147866112,-500.0,0.00051232,60]
[314281588,1708147866121,-739.89,0.00051232,60]
[314281589,1708147866130,-531.64082434,0.00051232,60]
[314281590,1708147866140,-500.0,0.00051232,60]
[314281591,1708147866149,-972.28,0.00051232,60]
[314281592,1708147866158,-500.0,0.00051232,60]
[314281593,1708147866168,-500.0,0.00051232,60]
[314281594,1708147866177,-500.0,0.00051232,60]
[314281595,1708147866187,-523.96,0.00051232,60]
[314281596,1708147866196,-500.0,0.00051232,60]
[314281597,1708147866206,-500.0,0.00051232,60]
[314281598,1708147866216,-500.0,0.00051232,60]
[314281599,1708147866225,-500.0,0.00051232,60]
[314281600,1708147866237,-500.0,0.00051232,60]
[314281601,1708147866247,-500.0,0.00051232,60]
[314281602,1708147866256,-854.01,0.00051232,60]
[314281603,1708147866265,-500.0,0.00051232,60]
[314281604,1708147866275,-500.0,0.00051232,7]
[314281605,1708147866285,-893.76,0.00051232,60]
[314281606,1708147866295,-1165.59,0.00051232,60]
[314281607,1708147866305,-1495.02,0.00051232,60]
[314281608,1708147866315,-500.0,0.00051232,60]
[314281609,1708147866324,-500.0,0.00051232,60]
[314281610,1708147866334,-500.0,0.00051232,60]
[314281611,1708147866342,-500.0,0.00051232,60]
[314281612,1708147866352,-390.57033283,0.00051232,60]
[314281613,1708147866361,-500.0,0.00051232,60]
[314281614,1708147866370,-636.17,0.00051232,60]
[314281615,1708147866383,-500.0,0.00051232,60]
[314281616,1708147866392,-5024.34,0.00051232,60]
[314281617,1708147866402,-602.99,0.00051232,60]
[314281618,1708147866412,-3136.01,0.00051232,60]
[314281619,1708147866422,-500.0,0.00051232,60]
[314281620,1708147866432,-500.0,0.00051232,60]
[314281621,1708147866442,-569.8,0.00051232,60]
[314281622,1708147866452,-500.0,0.00051232,60]
[314281623,1708147866462,-500.0,0.00051232,60]
[314281624,1708147866473,-500.0,0.00051232,60]
[314281625,1708147866484,-500.0,0.00051232,60]
[314281626,1708147866494,-556.89,0.00051232,60]
[314281627,1708147866503,-500.0,0.00051232,60]
[314281628,1708147866513,-500.0,0.00051232,60]
[314281629,1708147866522,-3220.88,0.00051232,60]
[314281630,1708147866532,-500.0,0.00051232,60]
[314281631,1708147866541,-500.0,0.00051232,60]
[314281632,1708147866551,-1210.8,0.00051232,14]
[314281633,1708147866562,-408.56987597,0.00051232,60]
[314281634,1708147866571,-349.17,0.00051232,60]
[314281635,1708147866581,-500.0,0.00051232,2]
[314281636,1708147866590,-500.0,0.00051232,60]
[314281637,1708147866599,-500.0,0.00051232,60]
[314281638,1708147866609,-1846.34,0.00051232,60]
[314281639,1708147866618,-500.0,0.00051232,60]
[314281640,1708147866628,-500.0,0.00051232,60]
[314281641,1708147866638,-500.0,0.00051232,60]
[314281642,1708147866648,-500.0,0.00051232,60]
[314281643,1708147866657,-783.66,0.00051232,60]
[314281644,1708147866667,-622.67,0.00051232,60]
[314281645,1708147866676,-500.0,0.00051232,60]
[314281646,1708147866774,-500.0,0.00051232,60]
[314281647,1708147866784,-502.24,0.00051232,60]
[314281648,1708147866794,-500.0,0.00051232,60]
[314281649,1708147866804,-873.0,0.00051232,60]
[314281650,1708147866815,-500.0,0.00051232,60]
[314281651,1708147866825,-523.09,0.00051232,60]
[314281652,1708147866835,-500.0,0.00051232,60]
[314281653,1708147866844,-519.51,0.00051232,60]
[314281654,1708147866854,-500.0,0.00051232,60]
[314281655,1708147866864,-500.0,0.00051232,60]
[314281656,1708147866874,-1634.88,0.00051232,60]
[314281657,1708147866883,-500.0,0.00051232,60]
[314281658,1708147866893,-500.0,0.00051232,60]
[314281659,1708147866903,-937.4,0.00051232,60]
[314281660,1708147866913,-284.85464846,0.00051232,60]
[314281661,1708147866923,-500.0,0.00051232,60]
[314281662,1708147866933,-2129.66,0.00051232,60]
[314281663,1708147866943,-500.0,0.00051232,60]
[314281664,1708147866952,-577.85,0.00051232,60]
[314281665,1708147866962,-1182.25,0.00051232,60]
[314281666,1708147866971,-500.0,0.00051232,60]
[314281667,1708147866982,-500.0,0.00051232,60]
[314281668,1708147866992,-500.0,0.00051232,60]
[314281669,1708147867003,-1111.25,0.00051232,60]
[314281670,1708147867012,-1935.87,0.00051232,60]
[314281671,1708147867021,-692.92,0.00051232,60]
[314281672,1708147867031,-554.4,0.00051232,60]
[314281673,1708147867041,-879.44,0.00051232,60]
[314281674,1708147867050,-572.06452508,0.00051232,60]
[314281675,1708147867060,-500.0,0.00051232,60]
[314281676,1708147867070,-1145.97,0.00051232,60]
[314281677,1708147867079,-500.0,0.00051232,60]
[314281678,1708147867089,-468.33368887,0.00051232,60]
[314281679,1708147867099,-500.0,0.00051232,60]
[314281680,1708147867108,-500.0,0.00051232,60]
[314281681,1708147867118,-548.51,0.00051232,60]
[314281682,1708147867126,-718.43,0.00051232,60]
[314281683,1708147867136,-5123.64,0.00051232,60]
[314281684,1708147867145,-500.0,0.00051232,60]
[314281685,1708147867154,-500.0,0.00051232,60]
[314281686,1708147867164,-500.0,0.00051232,60]
[314281687,1708147867174,-738.56,0.00051232,60]
[314281688,1708147867184,-12479.19,0.00051232,60]
[314281689,1708147867193,-500.0,0.00051232,2]
[314281690,1708147867204,-206.0,0.00051271,36]
[314281691,1708147867213,-5048.311987,0.0005136,2]
[314281692,1708147867223,-25000.0,0.000514,120]
[314281693,1708147867233,-17515.0,0.000514,120]
[314281694,1708147867242,-201.2448784,0.000514,28]
[314281695,1708147867251,-646.84666096,0.00051406,2]
[314281696,1708147867262,-171.021777,0.00051448,72]
[314281697,1708147867271,-221.866699,0.00051453,30]
[314281698,1708147867281,-196.409247,0.00051453,30]
[314281699,1708147867290,-409.94,0.00051494,2]
[314281700,1708147867300,-5000.0,0.000515,60]
[314281701,1708147867309,-3000.0,0.000515,45]
[314281702,1708147867318,-5000.0,0.000515,60]
[314281703,1708147867328,-3000.0,0.000515,45]
[314281704,1708147867337,-5000.0,0.000515,60]
[314281705,1708147867347,-3000.0,0.000515,45]
[314281706,1708147867356,-3000.0,0.000515,45]
[314281707,1708147867365,-5000.0,0.000515,60]
[314281708,1708147867374,-2459.079783,0.00051506,30]
[314281709,1708147867385,-397.904308,0.00051506,30]
[314281710,1708147867395,-1944.847642,0.00051506,30]
[314281711,1708147867405,-2594.841223,0.00051506,30]
[314281712,1708147867414,-737.419424,0.00051506,120]
[314281713,1708147867423,-500.0,0.00051506,60]
[314281714,1708147867434,-186.67227979,0.00051506,60]
[314281715,1708147867443,-500.0,0.00051506,60]
[314281716,1708147867452,-500.0,0.00051506,60]
[314281717,1708147867462,-500.0,0.00051506,60]
[314281718,1708147867471,-526.92,0.00051506,60]
[314281719,1708147867481,-500.0,0.00051506,60]
[314281720,1708147867490,-500.0,0.00051506,60]
[314281721,1708147867499,-1028.76,0.00051506,2]
[314281722,1708147867508,-500.0,0.00051506,60]
[314281723,1708147867518,-1750.0,0.00051506,7]
[314281724,1708147867528,-500.0,0.00051506,60]
[314281725,1708147867538,-629.85,0.00051506,60]
[314281726,1708147867547,-500.0,0.00051506,60]
[314281727,1708147867558,-500.0,0.00051506,2]
[314281728,1708147867567,-500.0,0.00051506,60]
[314281729,1708147867577,-500.0,0.00051506,2]
[314281730,1708147867586,-563.05,0.00051506,2]
[314281731,1708147867596,-228.14314416,0.00051506,60]
[314281732,1708147867605,-500.0,0.00051506,60]
[314281733,1708147867614,-618.81,0.00051506,60]
[314281734,1708147867624,-500.0,0.00051506,60]
[314281735,1708147867633,-500.0,0.00051506,60]
[314281736,1708147867643,-1162.21,0.00051506,60]
[314281737,1708147867652,-1393.94,0.00051506,60]
[314281738,1708147867661,-500.0,0.00051506,60]
[314281739,1708147867671,-227.06373063,0.00051506,2]
[314281740,1708147867681,-500.0,0.00051506,60]
[314281741,1708147867690,-500.0,0.00051506,60]
[314281742,1708147867699,-155.58994944,0.00051506,60]
[314281743,1708147867708,-500.0,0.00051506,60]
[314281744,1708147867717,-739.89,0.00051506,60]
[314281745,1708147867727,-500.0,0.00051506,60]
[314281746,1708147867737,-972.28,0.00051506,60]
[314281747,1708147867747,-500.0,0.00051506,60]
[314281748,1708147867757,-500.0,0.00051506,60]
[314281749,1708147867767,-500.0,0.00051506,60]
[314281750,1708147867777,-523.96,0.00051506,60]
[314281751,1708147867786,-500.0,0.00051506,60]
[314281752,1708147867796,-500.0,0.00051506,60]
[314281753,1708147867806,-380.25994813,0.00051506,60]
[314281754,1708147867815,-500.0,0.00051506,60]
[314281755,1708147867825,-152.49287195,0.00051506,60]
[314281756,1708147867835,-500.0,0.00051506,60]
[314281757,1708147867844,-854.01,0.00051506,60]
[314281758,1708147867854,-500.0,0.00051506,60]
[314281759,1708147867864,-500.0,0.00051506,7]
[314281760,1708147867873,-893.76,0.00051506,60]
[314281761,1708147867883,-1165.59,0.00051506,60]
[314281762,1708147867893,-1495.02,0.00051506,60]
[314281763,1708147867902,-500.0,0.00051506,60]
[314281764,1708147867912,-500.0,0.00051506,60]
[314281765,1708147867921,-500.0,0.00051506,60]
[314281766,1708147867930,-500.0,0.00051506,60]
[314281767,1708147867940,-500.0,0.00051506,60]
[314281768,1708147867949,-636.17,0.00051506,60]
[314281769,1708147867958,-500.0,0.00051506,60]
[314281770,1708147867967,-5024.34,0.00051506,60]
[314281771,1708147867977,-602.99,0.00051506,60]
[314281772,1708147867988,-3136.01,0.00051506,60]
[314281773,1708147867998,-500.0,0.00051506,60]
[314281774,1708147868007,-500.0,0.00051506,60]
[314281775,1708147868017,-569.8,0.00051506,60]
[314281776,1708147868026,-500.0,0.00051506,60]
[314281777,1708147868035,-500.0,0.00051506,60]
[314281778,1708147868044,-500.0,0.00051506,60]
[314281779,1708147868054,-500.0,0.00051506,60]
[314281780,1708147868064,-556.89,0.00051506,60]
[314281781,1708147868073,-260.98208798,0.00051506,60]
[314281782,1708147868082,-500.0,0.00051506,60]
[314281783,1708147868091,-3220.88,0.00051506,60]
[314281784,1708147868101,-500.0,0.00051506,60]
[314281785,1708147868111,-500.0,0.00051506,60]
[314281786,1708147868120,-1210.8,0.00051506,14]
[314281787,1708147868130,-500.0,0.00051506,2]
[314281788,1708147868139,-500.0,0.00051506,60]
[314281789,1708147868148,-500.0,0.00051506,60]
[314281790,1708147868157,-1846.34,0.00051506,60]
[314281791,1708147868167,-500.0,0.00051506,60]
[314281792,1708147868176,-324.85641481,0.00051506,60]
[314281793,1708147868185,-500.0,0.00051506,60]
[314281794,1708147868200,-500.0,0.00051506,60]
[314281795,1708147868209,-783.66,0.00051506,60]
[314281796,1708147868218,-622.67,0.00051506,60]
[314281797,1708147868307,-500.0,0.00051506,60]
[314281798,1708147868317,-500.0,0.00051506,60]
[314281799,1708147868326,-502.24,0.00051506,60]
[314281800,1708147868335,-303.54448397,0.00051506,60]
[314281801,1708147868345,-873.0,0.00051506,60]
[314281802,1708147868354,-500.0,0.00051506,60]
[314281803,1708147868364,-523.09,0.00051506,60]
[314281804,1708147868379,-500.0,0.00051506,60]
[314281805,1708147868389,-519.51,0.00051506,60]
[314281806,1708147868398,-500.0,0.00051506,60]
[314281807,1708147868407,-500.0,0.00051506,60]
[314281808,1708147868418,-1634.88,0.00051506,60]
[314281809,1708147868427,-500.0,0.00051506,60]
[314281810,1708147868436,-500.0,0.00051506,60]
[314281811,1708147868445,-937.4,0.00051506,60]
[314281812,1708147868456,-500.0,0.00051506,60]
[314281813,1708147868467,-2129.66,0.00051506,60]
[314281814,1708147868476,-500.0,0.00051506,60]
[314281815,1708147868487,-577.85,0.00051506,60]
[314281816,1708147868497,-1182.25,0.00051506,60]
[314281817,1708147868507,-500.0,0.00051506,60]
[314281818,1708147868516,-500.0,0.00051506,60]
[314281819,1708147868525,-500.0,0.00051506,60]
[314281820,1708147868534,-1111.25,0.00051506,60]
[314281821,1708147868544,-1935.87,0.00051506,60]
[314281822,1708147868553,-692.92,0.00051506,60]
[314281823,1708147868563,-554.4,0.00051506,60]
[314281824,1708147868573,-879.44,0.00051506,60]
[314281825,1708147868582,-500.0,0.00051506,60]
[314281826,1708147868592,-1145.97,0.00051506,60]
[314281827,1708147868601,-500.0,0.00051506,60]
[314281828,1708147868611,-500.0,0.00051506,60]
[314281829,1708147868620,-486.09409204,0.00051506,60]
[314281830,1708147868629,-548.51,0.00051506,60]
[314281831,1708147868637,-718.43,0.00051506,60]
[314281832,1708147868646,-5123.64,0.00051506,60]
[314281833,1708147868656,-500.0,0.00051506,60]
[314281834,1708147868665,-500.0,0.00051506,60]
[314281835,1708147868674,-500.0,0.00051506,60]
[314281836,1708147868683,-738.56,0.00051506,60]
[314281837,1708147868693,-12479.19,0.00051506,60]
[314281838,1708147868702,-500.0,0.00051506,2]
[314281839,1708147868711,-19091.63634988,0.00051518,20]
[314281840,1708147868721,-244.0,0.00051555,60]
[314281841,1708147868730,-432.0,0.00051603,30]
[314281842,1708147868740,-152.266666,0.00051633,30]
[314281843,1708147868750,-685.57516696,0.0005168,2]
[314281844,1708147868760,-151.021777,0.00051748,74]
[314281845,1708147868769,-21720.0,0.00051767,120]
[314281846,1708147868779,-1000.0,0.00051768,30]
[314281847,1708147868788,-1000.0,0.00051768,30]
[314281848,1708147868797,-200.0,0.00051777,80]
[314281849,1708147868807,-500.0,0.0005178,60]
[314281850,1708147868816,-500.0,0.0005178,60]
[314281851,1708147868826,-500.0,0.0005178,60]
[314281852,1708147868835,-526.92,0.0005178,60]
[314281853,1708147868844,-500.0,0.0005178,60]
[314281854,1708147868854,-326.2436448,0.0005178,60]
[314281855,1708147868863,-1028.76,0.0005178,2]
[314281856,1708147868873,-500.0,0.0005178,60]
[314281857,1708147868882,-500.0,0.0005178,60]
[314281858,1708147868891,-629.85,0.0005178,60]
[314281859,1708147868901,-500.0,0.0005178,60]
[314281860,1708147868910,-500.0,0.0005178,2]
[314281861,1708147868919,-500.0,0.0005178,60]
[314281862,1708147868929,-213.90131513,0.0005178,2]
[314281863,1708147868938,-563.05,0.0005178,2]
[314281864,1708147868947,-500.0,0.0005178,60]
[314281865,1708147868957,-618.81,0.0005178,60]
[314281866,1708147868967,-500.0,0.0005178,60]
[314281867,1708147868977,-500.0,0.0005178,60]
[314281868,1708147868986,-1162.21,0.0005178,60]
[314281869,1708147868995,-1393.94,0.0005178,60]
[314281870,1708147869005,-500.0,0.0005178,60]
[314281871,1708147869014,-500.0,0.0005178,60]
[314281872,1708147869024,-500.0,0.0005178,60]
[314281873,1708147869033,-500.0,0.0005178,60]
[314281874,1708147869042,-739.89,0.0005178,60]
[314281875,1708147869051,-972.28,0.0005178,60]
[314281876,1708147869061,-500.0,0.0005178,60]
[314281877,1708147869070,-500.0,0.0005178,60]
[314281878,1708147869079,-500.0,0.0005178,60]
[314281879,1708147869089,-507.45806377,0.0005178,60]
[314281880,1708147869098,-523.96,0.0005178,60]
[314281881,1708147869108,-500.0,0.0005178,60]
[314281882,1708147869117,-500.0,0.0005178,60]
[314281883,1708147869127,-500.0,0.0005178,60]
[314281884,1708147869136,-500.0,0.0005178,60]
[314281885,1708147869146,-854.01,0.0005178,60]
[314281886,1708147869155,-500.0,0.0005178,60]
[314281887,1708147869165,-500.0,0.0005178,7]
[314281888,1708147869174,-893.76,0.0005178,60]
[314281889,1708147869184,-1165.59,0.0005178,60]
[314281890,1708147869193,-1495.02,0.0005178,60]
[314281891,1708147869203,-500.0,0.0005178,60]
[314281892,1708147869213,-228.9310657,0.0005178,60]
[314281893,1708147869223,-524.47335845,0.0005178,60]
[314281894,1708147869232,-500.0,0.0005178,60]
[314281895,1708147869242,-636.17,0.0005178,60]
[314281896,1708147869251,-500.0,0.0005178,60]
[314281897,1708147869260,-5024.34,0.0005178,60]
[314281898,1708147869269,-602.99,0.0005178,60]
[314281899,1708147869280,-3136.01,0.0005178,60]
[314281900,1708147869289,-500.0,0.0005178,60]
[314281901,1708147869298,-500.0,0.0005178,60]
[314281902,1708147869308,-569.8,0.0005178,60]
[314281903,1708147869317,-524.6434262,0.0005178,60]
[314281904,1708147869326,-500.0,0.0005178,60]
[314281905,1708147869335,-500.0,0.0005178,60]
[314281906,1708147869344,-500.0,0.0005178,60]
[314281907,1708147869354,-556.89,0.0005178,60]
[314281908,1708147869363,-365.88100465,0.0005178,60]
[314281909,1708147869373,-3220.88,0.0005178,60]
[314281910,1708147869385,-500.0,0.0005178,60]
[314281911,1708147869394,-500.0,0.0005178,60]
[314281912,1708147869403,-1210.8,0.0005178,14]
[314281913,1708147869413,-500.0,0.0005178,2]
[314281914,1708147869422,-500.0,0.0005178,60]
[314281915,1708147869431,-500.0,0.0005178,60]
[314281916,1708147869440,-1846.34,0.0005178,60]
[314281917,1708147869449,-500.0,0.0005178,60]
[314281918,1708147869459,-500.0,0.0005178,60]
[314281919,1708147869470,-500.0,0.0005178,60]
[314281920,1708147869480,-783.66,0.0005178,60]
[314281921,1708147869489,-622.67,0.0005178,60]
[314281922,1708147869498,-500.0,0.0005178,60]
[314281923,1708147869508,-500.0,0.0005178,60]
[314281924,1708147869518,-502.24,0.0005178,60]
[314281925,1708147869529,-873.0,0.0005178,60]
[314281926,1708147869539,-500.0,0.0005178,60]
[314281927,1708147869549,-523.09,0.0005178,60]
[314281928,1708147869560,-500.0,0.0005178,60]
[314281929,1708147869569,-519.51,0.0005178,60]
[314281930,1708147869579,-500.0,0.0005178,60]
[314281931,1708147869589,-500.0,0.0005178,60]
[314281932,1708147869598,-1634.88,0.0005178,60]
[314281933,1708147869608,-568.10929905,0.0005178,60]
[314281934,1708147869617,-500.0,0.0005178,60]
[314281935,1708147869626,-937.4,0.0005178,60]
[314281936,1708147869711,-500.0,0.0005178,60]
[314281937,1708147869721,-2129.66,0.0005178,60]
[314281938,1708147869731,-500.0,0.0005178,60]
[314281939,1708147869741,-577.85,0.0005178,60]
[314281940,1708147869750,-1182.25,0.0005178,60]
[314281941,1708147869761,-500.0,0.0005178,60]
[314281942,1708147869770,-500.0,0.0005178,60]
[314281943,1708147869780,-500.0,0.0005178,60]
[314281944,1708147869789,-1111.25,0.0005178,60]
[314281945,1708147869800,-1935.87,0.0005178,60]
[314281946,1708147869812,-692.92,0.0005178,60]
[314281947,1708147869822,-554.4,0.0005178,60]
[314281948,1708147869833,-879.44,0.0005178,60]
[314281949,1708147869843,-500.0,0.0005178,60]
[314281950,1708147869853,-1145.97,0.0005178,60]
[314281951,1708147869862,-500.0,0.0005178,60]
[314281952,1708147869872,-500.0,0.0005178,60]
[314281953,1708147869881,-548.51,0.0005178,60]
[314281954,1708147869891,-718.43,0.0005178,60]
[314281955,1708147869900,-5123.64,0.0005178,60]
[314281956,1708147869910,-500.0,0.0005178,60]
[314281957,1708147869919,-500.0,0.0005178,60]
[314281958,1708147869929,-500.0,0.0005178,60]
[314281959,1708147869939,-738.56,0.0005178,60]
[314281960,1708147869949,-12479.19,0.0005178,60]
[314281961,1708147869958,-500.0,0.0005178,2]
[314281962,1708147869967,-405.51,0.00051781,30]
[314281963,1708147869977,-405.51,0.00051781,30]
[314281964,1708147869987,-405.51,0.00051781,30]
[314281965,1708147869996,-317.73,0.00051781,30]
[314281966,1708147870006,-404.99,0.00051781,30]
[314281967,1708147870015,-412.14,0.00051781,30]
[314281968,1708147870025,-412.14,0.00051781,30]
[314281969,1708147870034,-1000.0,0.000518,120]
[314281970,1708147870043,-2166.73013342,0.000518,120]
[314281971,1708147870053,-1000.0,0.0005181,30]
[314281972,1708147870062,-214.67526642,0.000519,2]
[314281973,1708147870072,-1530.62841672,0.00051922,14]
[314281974,1708147870081,-1446.151291,0.00051964,2]
[314281975,1708147870092,-8467.7995795,0.00051964,2]
[314281976,1708147870101,-1977.7691371,0.00051964,2]
[314281977,1708147870110,-200.0,0.00051987,82]
[314281978,1708147870120,-1000.0,0.00051987,4]
[314281979,1708147870129,-238.56570963,0.00051999,11]
[314281980,1708147870139,-201.31858058,0.00051999,11]
[314281981,1708147870148,-8294.0,0.00052,30]
[314281982,1708147870157,-1212.91218193,0.00052,4]
[314281983,1708147870166,-13612.77,0.00052,31]
[314281984,1708147870175,-186591.74229204,0.00052,31]
[314281985,1708147870184,-2983.67166812,0.00052,120]
[314281986,1708147870193,-327.91711328,0.00052,52]
[314281987,1708147870203,-164.0,0.00052,7]
[314281988,1708147870213,-10000.0,0.00052,25]
[314281989,1708147870222,-11006.43,0.00052,120]
[314281990,1708147870231,-1000.0,0.00052,15]
[314281991,1708147870241,-13103.1322876,0.00052018,2]
[314281992,1708147870250,-170.78,0.00052025,61]
[314281993,1708147870259,-150.5,0.00052035,61]
[314281994,1708147870269,-150.5,0.00052045,61]
[314281995,1708147870279,-169.08,0.00052045,61]
[314281996,1708147870289,-3606.63,0.00052054,5]
[314281997,1708147870298,-1229.539891,0.00052054,30]
[314281998,1708147870308,-198.952154,0.00052054,30]
[314281999,1708147870317,-972.423821,0.00052054,30]
[314282000,1708147870326,-1297.420611,0.00052054,30]
[314282001,1708147870336,-368.709712,0.00052054,120]
[314282002,1708147870345,-500.0,0.00052054,60]
[314282003,1708147870354,-500.0,0.00052054,60]
[314282004,1708147870363,-500.0,0.00052054,60]
[314282005,1708147870373,-526.92,0.00052054,60]
[314282006,1708147870382,-500.0,0.00052054,60]
[314282007,1708147870394,-1028.76,0.00052054,2]
[314282008,1708147870404,-500.0,0.00052054,60]
[314282009,1708147870413,-500.0,0.00052054,60]
[314282010,1708147870422,-629.85,0.00052054,60]
[314282011,1708147870434,-500.0,0.00052054,60]
[314282012,1708147870443,-500.0,0.00052054,2]
[314282013,1708147870453,-500.0,0.00052054,60]
[314282014,1708147870463,-563.05,0.00052054,2]
[314282015,1708147870472,-191.24742863,0.00052054,60]
[314282016,1708147870482,-618.81,0.00052054,60]
[314282017,1708147870492,-500.0,0.00052054,60]
[314282018,1708147870501,-500.0,0.00052054,60]
[314282019,1708147870510,-1162.21,0.00052054,60]
[314282020,1708147870520,-1393.94,0.00052054,60]
[314282021,1708147870529,-500.0,0.00052054,60]
[314282022,1708147870539,-500.0,0.00052054,60]
[314282023,1708147870548,-500.0,0.00052054,60]
[314282024,1708147870558,-500.0,0.00052054,60]
[314282025,1708147870567,-739.89,0.00052054,60]
[314282026,1708147870577,-972.28,0.00052054,60]
[314282027,1708147870586,-500.0,0.00052054,60]
[314282028,1708147870596,-500.0,0.00052054,60]
[314282029,1708147870605,-500.0,0.00052054,60]
[314282030,1708147870615,-523.96,0.00052054,60]
[314282031,1708147870625,-647.809935,0.00052054,60]
[314282032,1708147870634,-500.0,0.00052054,60]
[314282033,1708147870643,-607.13670439,0.00052054,60]
[314282034,1708147870652,-500.0,0.00052054,60]
[314282035,1708147870662,-854.01,0.00052054,60]
[314282036,1708147870672,-500.0,0.00052054,60]
[314282037,1708147870681,-500.0,0.00052054,7]
[314282038,1708147870691,-893.76,0.00052054,60]
[314282039,1708147870700,-1165.59,0.00052054,60]
[314282040,1708147870710,-1495.02,0.00052054,60]
[314282041,1708147870719,-500.0,0.00052054,60]
[314282042,1708147870728,-636.17,0.00052054,60]
[314282043,1708147870739,-500.0,0.00052054,60]
[314282044,1708147870748,-500.0,0.00052054,60]
[314282045,1708147870757,-5024.34,0.00052054,60]
[314282046,1708147870766,-602.99,0.00052054,60]
[314282047,1708147870776,-3136.01,0.00052054,60]
[314282048,1708147870786,-500.0,0.00052054,60]
[314282049,1708147870796,-500.0,0.00052054,60]
[314282050,1708147870806,-569.8,0.00052054,60]
[314282051,1708147870816,-500.5456563,0.00052054,60]
[314282052,1708147870826,-500.0,0.00052054,60]
[314282053,1708147870836,-500.0,0.00052054,60]
[314282054,1708147870845,-556.89,0.00052054,60]
[314282055,1708147870855,-3220.88,0.00052054,60]
[314282056,1708147870864,-500.0,0.00052054,60]
[314282057,1708147870874,-500.0,0.00052054,60]
[314282058,1708147870883,-1210.8,0.00052054,14]
[314282059,1708147870892,-500.0,0.00052054,2]
[314282060,1708147870902,-500.0,0.00052054,60]
[314282061,1708147870911,-500.0,0.00052054,60]
[314282062,1708147870921,-1846.34,0.00052054,60]
[314282063,1708147870930,-500.0,0.00052054,60]
[314282064,1708147871012,-500.0,0.00052054,60]
[314282065,1708147871022,-500.0,0.00052054,60]
[314282066,1708147871032,-783.66,0.00052054,60]
[314282067,1708147871041,-622.67,0.00052054,60]
[314282068,1708147871051,-500.0,0.00052054,60]
[314282069,1708147871060,-500.0,0.00052054,60]
[314282070,1708147871070,-502.24,0.00052054,60]
[314282071,1708147871079,-873.0,0.00052054,60]
[314282072,1708147871089,-500.0,0.00052054,60]
[314282073,1708147871098,-523.09,0.00052054,60]
[314282074,1708147871108,-500.0,0.00052054,60]
[314282075,1708147871118,-519.51,0.00052054,60]
[314282076,1708147871127,-500.0,0.00052054,60]
[314282077,1708147871137,-500.0,0.00052054,60]
[314282078,1708147871146,-1634.88,0.00052054,60]
[314282079,1708147871156,-500.0,0.00052054,60]
[314282080,1708147871165,-937.4,0.00052054,60]
[314282081,1708147871174,-500.0,0.00052054,60]
[314282082,1708147871184,-2129.66,0.00052054,60]
[314282083,1708147871193,-500.0,0.00052054,60]